fUST/lending_fUST_20241228
["ID","MTS","AMOUNT","RATE_DAILY","PERIOD"]
[346870766,1735336163559,-500.0,0.00012026,2]
[346870767,1735336163581,-500.0,0.00012026,2]
[346870768,1735336163603,-500.0,0.00012026,2]
[346870769,1735336163624,-702.86,0.00012026,2]
[346870770,1735336163646,-500.0,0.00012026,2]
[346870771,1735336163668,-500.0,0.00012026,2]
[346870772,1735336163694,-500.0,0.00012026,2]
[346870773,1735336163717,-473.38,0.00012028,2]
[346870774,1735336163740,-500.0,0.00012028,2]
[346870775,1735336163761,-500.0,0.00012028,2]
[346870776,1735336163787,-500.0,0.00012029,2]
[346870777,1735336163809,-219.83,0.00012029,2]
[346870778,1735336163833,-291.61957433,0.00012029,2]
[346870779,1735336163878,-822.00042567,0.00012029,2]
[346870780,1735336163899,-500.0,0.0001226,2]
[346870781,1735336163920,-500.0,0.0001226,2]
[346870782,1735336163940,-500.0,0.0001226,2]
[346870783,1735336163962,-670.86,0.0001226,2]
[346870784,1735336163982,-500.0,0.00012261,2]
[346870785,1735336164003,-566.44,0.00012261,2]
[346870786,1735336164023,-500.0,0.00012261,2]
[346870787,1735336164044,-544.18,0.00012261,2]
[346870788,1735336164066,-500.0,0.00012261,2]
[346870789,1735336164088,-500.0,0.00012261,2]
[346870790,1735336164110,-4061.87,0.00012261,2]
[346870791,1735336164134,-500.0,0.00012261,2]
[346870792,1735336164156,-500.0,0.00012261,2]
[346870793,1735336164178,-500.0,0.00012261,2]
[346870794,1735336164201,-500.0,0.00012261,2]
[346870795,1735336164223,-317.65208545,0.00012261,2]
[346870796,1735336164245,-500.0,0.00012261,2]
[346870797,1735336164267,-500.0,0.00012261,2]
[346870798,1735336164288,-500.0,0.00012261,2]
[346870799,1735336164309,-366.62,0.00012261,2]
[346870800,1735336164330,-500.0,0.00012261,2]
[346870801,1735336164351,-236.0,0.00012261,2]
[346870802,1735336164372,-500.0,0.00012261,2]
[346870803,1735336164393,-1893.62,0.00012262,2]
[346870804,1735336164415,-500.0,0.00012262,2]
[346870805,1735336164435,-317.94,0.00012262,2]
[346870806,1735336164455,-500.0,0.00012262,2]
[346870807,1735336164476,-1000.0,0.00012262,2]
[346870808,1735336164497,-500.0,0.000123,2]
[346870809,1735336164517,-500.0,0.000123,2]
[346870810,1735336164537,-619.08,0.000123,2]
[346870811,1735336164557,-500.0,0.000123,2]
[346870812,1735336164577,-500.0,0.000123,2]
[346870813,1735336164681,-283.28,0.000123,2]
[346870814,1735336164702,-500.0,0.000123,2]
[346870815,1735336164722,-500.0,0.000123,2]
[346870816,1735336164742,-342.44,0.000123,2]
[346870817,1735336164762,-500.0,0.000123,2]
[346870818,1735336164783,-500.0,0.000123,2]
[346870819,1735336164804,-500.0,0.000123,2]
[346870820,1735336164825,-702.86,0.000123,2]
[346870821,1735336164846,-319.18,0.000123,2]
[346870822,1735336164867,-500.0,0.000123,2]
[346870823,1735336164888,-500.0,0.000123,2]
[346870824,1735336164910,-500.0,0.00012302,2]
[346870825,1735336164931,-500.0,0.00012302,2]
[346870826,1735336164953,-500.0,0.00012303,2]
[346870827,1735336164975,-1113.62,0.00012303,2]
[346870828,1735336164995,-513.26550794,0.00012441,2]
[346870829,1735336165017,-594.83893025,0.00012519,2]
[346870830,1735336165037,-317.29235454,0.00012528,2]
[346870831,1735336165059,-500.0,0.00012534,2]
[346870832,1735336165081,-500.0,0.00012534,2]
[346870833,1735336165101,-500.0,0.00012534,2]
[346870834,1735336165127,-670.86,0.00012534,2]
[346870835,1735336165148,-500.0,0.00012535,2]
[346870836,1735336165171,-566.44,0.00012535,2]
[346870837,1735336165192,-500.0,0.00012535,2]
[346870838,1735336165218,-544.18,0.00012535,2]
[346870839,1735336165239,-500.0,0.00012535,2]
[346870840,1735336165260,-500.0,0.00012535,2]
[346870841,1735336165283,-4061.87,0.00012535,2]
[346870842,1735336165304,-500.0,0.00012535,2]
[346870843,1735336165325,-500.0,0.00012535,2]
[346870844,1735336165348,-500.0,0.00012535,2]
[346870845,1735336165368,-500.0,0.00012535,2]
[346870846,1735336165390,-500.0,0.00012535,2]
[346870847,1735336165412,-500.0,0.00012535,2]
[346870848,1735336165433,-500.0,0.00012535,2]
[346870849,1735336165455,-315.58191737,0.00012535,2]
[346870850,1735336165476,-500.0,0.00012535,2]
[346870851,1735336165498,-1893.62,0.00012536,2]
[346870852,1735336165520,-500.0,0.00012536,2]
[346870853,1735336165540,-500.0,0.00012536,2]
[346870854,1735336165561,-1000.0,0.00012536,2]
[346870855,1735336165582,-500.0,0.00012574,2]
[346870856,1735336165603,-500.0,0.00012574,2]
[346870857,1735336165623,-500.0,0.00012574,2]
[346870858,1735336165644,-500.0,0.00012574,2]
[346870859,1735336165664,-500.0,0.00012574,2]
[346870860,1735336165684,-500.0,0.00012574,2]
[346870861,1735336165705,-637.47405859,0.00012574,2]
[346870862,1735336165726,-500.0,0.00012574,2]
[346870863,1735336165747,-500.0,0.00012574,2]
[346870864,1735336165767,-702.86,0.00012574,2]
[346870865,1735336165787,-308.19496101,0.00012574,2]
[346870866,1735336165807,-500.0,0.00012574,2]
[346870867,1735336165828,-500.0,0.00012576,2]
[346870868,1735336165848,-500.0,0.00012576,2]
[346870869,1735336165869,-500.0,0.00012577,2]
[346870870,1735336165891,-1113.62,0.00012577,2]
[346870871,1735336165910,-500.0,0.0001272,2]
[346870872,1735336165930,-500.0,0.00012778,2]
[346870873,1735336165951,-500.0,0.00012808,2]
[346870874,1735336165973,-500.0,0.00012808,2]
[346870875,1735336165992,-500.0,0.00012808,2]
[346870876,1735336166014,-670.86,0.00012808,2]
[346870877,1735336166034,-500.0,0.00012809,2]
[346870878,1735336166054,-566.44,0.00012809,2]
[346870879,1735336166074,-500.0,0.00012809,2]
[346870880,1735336166095,-544.18,0.00012809,2]
[346870881,1735336166117,-500.0,0.00012809,2]
[346870882,1735336166141,-500.0,0.00012809,2]
[346870883,1735336166164,-4061.87,0.00012809,2]
[346870884,1735336166185,-500.0,0.00012809,2]
[346870885,1735336166208,-500.0,0.00012809,2]
[346870886,1735336166230,-500.0,0.00012809,2]
[346870887,1735336166250,-500.0,0.00012809,2]
[346870888,1735336166271,-500.0,0.00012809,2]
[346870889,1735336166293,-500.0,0.00012809,2]
[346870890,1735336166315,-500.0,0.00012809,2]
[346870891,1735336166336,-500.0,0.00012809,2]
[346870892,1735336166357,-1893.62,0.0001281,2]
[346870893,1735336166379,-276.79,0.0001281,2]
[346870894,1735336166400,-500.0,0.0001281,2]
[346870895,1735336166420,-1000.0,0.0001281,2]
[346870896,1735336166441,-500.0,0.00012848,2]
[346870897,1735336166462,-500.0,0.00012848,2]
[346870898,1735336166483,-500.0,0.00012848,2]
[346870899,1735336166503,-500.0,0.00012848,2]
[346870900,1735336166523,-500.0,0.00012848,2]
[346870901,1735336166543,-500.0,0.00012848,2]
[346870902,1735336166563,-500.0,0.00012848,2]
[346870903,1735336166583,-208.60780376,0.00012848,2]
[346870904,1735336166603,-702.86,0.00012848,2]
[346870905,1735336166623,-212.9,0.00012848,2]
[346870906,1735336166644,-616.7924543,0.0001285,2]
[346870907,1735336166664,-500.0,0.0001285,2]
[346870908,1735336166685,-500.0,0.00012851,2]
[346870909,1735336166707,-1113.62,0.00012851,2]
[346870910,1735336166728,-500.0,0.00013082,2]
[346870911,1735336166833,-500.0,0.00013082,2]
[346870912,1735336166859,-500.0,0.00013082,2]
[346870913,1735336166881,-670.86,0.00013082,2]
[346870914,1735336166902,-566.44,0.00013083,2]
[346870915,1735336166925,-563.14,0.00013083,2]
[346870916,1735336166949,-544.18,0.00013083,2]
[346870917,1735336166970,-500.0,0.00013083,2]
[346870918,1735336166991,-500.0,0.00013083,2]
[346870919,1735336167013,-4061.87,0.00013083,2]
[346870920,1735336167033,-500.0,0.00013083,2]
[346870921,1735336167055,-500.0,0.00013083,2]
[346870922,1735336167077,-500.0,0.00013083,2]
[346870923,1735336167098,-500.0,0.00013083,2]
[346870924,1735336167123,-500.0,0.00013083,2]
[346870925,1735336167145,-500.0,0.00013083,2]
[346870926,1735336167168,-500.0,0.00013083,2]
[346870927,1735336167188,-500.0,0.00013083,2]
[346870928,1735336167213,-1893.62,0.00013084,2]
[346870929,1735336167234,-500.0,0.00013084,2]
[346870930,1735336167255,-1000.0,0.00013084,2]
[346870931,1735336167276,-500.0,0.00013122,2]
[346870932,1735336167297,-500.0,0.00013122,2]
[346870933,1735336167318,-500.0,0.00013122,2]
[346870934,1735336167339,-500.0,0.00013122,2]
[346870935,1735336167360,-500.0,0.00013122,2]
[346870936,1735336167380,-500.0,0.00013122,2]
[346870937,1735336167400,-500.0,0.00013122,2]
[346870938,1735336167420,-702.86,0.00013122,2]
[346870939,1735336167440,-500.0,0.00013124,2]
[346870940,1735336167461,-500.0,0.00013125,2]
[346870941,1735336167483,-1113.62,0.00013125,2]
[346870942,1735336167504,-893.1411399,0.00013267,2]
[346870943,1735336167524,-157.72206669,0.00013303,2]
[346870944,1735336167546,-500.0,0.00013356,2]
[346870945,1735336167567,-476.77656121,0.00013356,2]
[346870946,1735336167589,-670.86,0.00013356,2]
[346870947,1735336167609,-566.44,0.00013357,2]
[346870948,1735336167630,-544.18,0.00013357,2]
[346870949,1735336167651,-500.0,0.00013357,2]
[346870950,1735336167672,-500.0,0.00013357,2]
[346870951,1735336167694,-4061.87,0.00013357,2]
[346870952,1735336167715,-500.0,0.00013357,2]
[346870953,1735336167736,-500.0,0.00013357,2]
[346870954,1735336167756,-500.0,0.00013357,2]
[346870955,1735336167777,-500.0,0.00013357,2]
[346870956,1735336167798,-500.0,0.00013357,2]
[346870957,1735336167820,-500.0,0.00013357,2]
[346870958,1735336167840,-500.0,0.00013357,2]
[346870959,1735336167860,-500.0,0.00013357,2]
[346870960,1735336167881,-1893.62,0.00013358,2]
[346870961,1735336167901,-324.81,0.00013358,2]
[346870962,1735336167922,-361.78938607,0.00013358,2]
[346870963,1735336167942,-500.0,0.00013396,2]
[346870964,1735336167962,-500.0,0.00013396,2]
[346870965,1735336167983,-500.0,0.00013396,2]
[346870966,1735336168003,-423.67,0.00013396,2]
[346870967,1735336168022,-702.86,0.00013396,2]
[346870968,1735336168042,-203.76,0.00013397,2]
[346870969,1735336168062,-500.0,0.00013397,2]
[346870970,1735336168083,-500.0,0.00013397,2]
[346870971,1735336168102,-499.0,0.00013397,2]
[346870972,1735336168125,-500.0,0.00013397,2]
[346870973,1735336168145,-500.0,0.00013397,2]
[346870974,1735336168164,-500.0,0.00013397,2]
[346870975,1735336168185,-500.0,0.00013397,2]
[346870976,1735336168206,-500.0,0.00013397,2]
[346870977,1735336168227,-500.0,0.00013397,2]
[346870978,1735336168247,-500.0,0.00013397,2]
[346870979,1735336168268,-500.0,0.00013397,2]
[346870980,1735336168288,-500.0,0.00013397,2]
[346870981,1735336168308,-500.0,0.00013397,2]
[346870982,1735336168328,-486.82234421,0.00013397,2]
[346870983,1735336168348,-500.0,0.00013397,2]
[346870984,1735336168368,-205.55411599,0.00013397,2]
[346870985,1735336168388,-500.0,0.00013397,2]
[346870986,1735336168408,-500.0,0.00013397,2]
[346870987,1735336168428,-500.0,0.00013397,2]
[346870988,1735336168449,-500.0,0.00013397,2]
[346870989,1735336168469,-500.0,0.00013397,2]
[346870990,1735336168489,-500.0,0.00013397,2]
[346870991,1735336168510,-500.0,0.00013397,2]
[346870992,1735336168530,-500.0,0.00013397,2]
[346870993,1735336168550,-500.0,0.00013397,2]
[346870994,1735336168570,-500.0,0.00013397,2]
[346870995,1735336168590,-500.0,0.00013397,2]
[346870996,1735336168610,-500.0,0.00013397,2]
[346870997,1735336168631,-500.0,0.00013397,2]
[346870998,1735336168650,-500.0,0.00013397,2]
[346870999,1735336168670,-500.0,0.00013397,2]
[346871000,1735336168691,-500.0,0.00013397,2]
[346871001,1735336168711,-500.0,0.00013397,2]
[346871002,1735336168731,-500.0,0.00013397,2]
[346871003,1735336168752,-500.0,0.00013397,2]
[346871004,1735336168772,-500.0,0.00013397,2]
[346871005,1735336168793,-500.0,0.00013397,2]
[346871006,1735336168895,-448.2842866,0.00013397,2]
[346871007,1735336168916,-500.0,0.00013397,2]
[346871008,1735336168937,-500.0,0.00013397,2]
[346871009,1735336168957,-500.0,0.00013397,2]
[346871010,1735336168977,-503.18389783,0.00013397,2]
[346871011,1735336168997,-500.0,0.00013397,2]
[346871012,1735336169017,-500.0,0.00013397,2]
[346871013,1735336169037,-500.0,0.00013397,2]
[346871014,1735336169057,-519.19083523,0.00013397,2]
[346871015,1735336169077,-500.0,0.00013397,2]
[346871016,1735336169098,-500.0,0.00013397,2]
[346871017,1735336169121,-500.0,0.00013397,2]
[346871018,1735336169145,-500.0,0.00013397,2]
[346871019,1735336169166,-500.0,0.00013397,2]
[346871020,1735336169187,-500.0,0.00013397,2]
[346871021,1735336169210,-335.2842728,0.00013397,2]
[346871022,1735336169230,-500.0,0.00013397,2]
[346871023,1735336169251,-500.0,0.00013397,2]
[346871024,1735336169271,-500.0,0.00013397,2]
[346871025,1735336169295,-500.0,0.00013397,2]
[346871026,1735336169315,-500.0,0.00013397,2]
[346871027,1735336169336,-500.0,0.00013397,2]
[346871028,1735336169358,-500.0,0.00013397,2]
[346871029,1735336169380,-500.0,0.00013397,2]
[346871030,1735336169403,-245.64301123,0.00013397,2]
[346871031,1735336169423,-500.0,0.00013397,2]
[346871032,1735336169443,-167.3717439,0.00013397,2]
[346871033,1735336169463,-500.0,0.00013397,2]
[346871034,1735336169485,-500.0,0.00013397,2]
[346871035,1735336169506,-500.0,0.00013397,2]
[346871036,1735336169526,-500.0,0.00013397,2]
[346871037,1735336169546,-500.0,0.00013397,2]
[346871038,1735336169568,-616.07,0.00013398,2]
[346871039,1735336169589,-500.0,0.00013399,2]
[346871040,1735336169612,-1113.62,0.00013399,2]
[346871041,1735336169634,-500.0,0.0001363,2]
[346871042,1735336169656,-670.86,0.0001363,2]
[346871043,1735336169677,-566.44,0.00013631,2]
[346871044,1735336169698,-544.18,0.00013631,2]
[346871045,1735336169719,-500.0,0.00013631,2]
[346871046,1735336169741,-500.0,0.00013631,2]
[346871047,1735336169763,-4061.87,0.00013631,2]
[346871048,1735336169783,-526.07106524,0.00013631,2]
[346871049,1735336169805,-500.0,0.00013631,2]
[346871050,1735336169825,-271.29,0.00013631,2]
[346871051,1735336169848,-500.0,0.00013631,2]
[346871052,1735336169870,-500.0,0.00013631,2]
[346871053,1735336169891,-322.91235355,0.00013631,2]
[346871054,1735336169911,-445.51,0.00013631,2]
[346871055,1735336169933,-1893.62,0.00013632,2]
[346871056,1735336169954,-500.0,0.0001367,2]
[346871057,1735336169975,-168.27,0.0001367,2]
[346871058,1735336169995,-702.86,0.0001367,2]
[346871059,1735336170016,-500.0,0.00013671,2]
[346871060,1735336170036,-152.5,0.00013671,2]
[346871061,1735336170058,-500.0,0.00013671,2]
[346871062,1735336170215,-213.11238855,0.00013671,2]
[346871063,1735336170236,-500.0,0.00013671,2]
[346871064,1735336170257,-500.0,0.00013671,2]
[346871065,1735336170279,-500.0,0.00013671,2]
[346871066,1735336170301,-500.0,0.00013671,2]
[346871067,1735336170324,-500.0,0.00013671,2]
[346871068,1735336170345,-500.0,0.00013671,2]
[346871069,1735336170367,-500.0,0.00013671,2]
[346871070,1735336170388,-500.0,0.00013671,2]
[346871071,1735336170411,-500.0,0.00013673,2]
[346871072,1735336170433,-1113.62,0.00013673,2]
[346871073,1735336170454,-395.324497,0.00013699,2]
[346871074,1735336170476,-500.0,0.00013904,2]
[346871075,1735336170498,-670.86,0.00013904,2]
[346871076,1735336170518,-566.44,0.00013905,2]
[346871077,1735336170540,-544.18,0.00013905,2]
[346871078,1735336170562,-262.57,0.00013905,2]
[346871079,1735336170587,-398.92,0.00013905,2]
[346871080,1735336170609,-4061.87,0.00013905,2]
[346871081,1735336170630,-500.0,0.00013905,2]
[346871082,1735336170652,-500.0,0.00013905,2]
[346871083,1735336170674,-267.16423621,0.00013905,2]
[346871084,1735336170695,-1893.62,0.00013906,2]
[346871085,1735336170716,-702.86,0.00013944,2]
[346871086,1735336170738,-500.0,0.00013945,2]
[346871087,1735336170760,-589.65244374,0.00013945,2]
[346871088,1735336170781,-183.48,0.00013945,2]
[346871089,1735336170802,-292.67,0.00013945,2]
[346871090,1735336170824,-500.0,0.00013945,2]
[346871091,1735336170844,-500.0,0.00013945,2]
[346871092,1735336170865,-617.26,0.00013945,2]
[346871093,1735336170887,-500.0,0.00013947,2]
[346871094,1735336170908,-1113.62,0.00013947,2]
[346871095,1735336170928,-400.0,0.00013973,2]
[346871096,1735336170949,-506.0,0.00014,4]
[346871097,1735336171048,-500.0,0.00014178,2]
[346871098,1735336171071,-670.86,0.00014178,2]
[346871099,1735336171092,-566.44,0.00014179,2]
[346871100,1735336171114,-544.18,0.00014179,2]
[346871101,1735336171141,-4061.87,0.00014179,2]
[346871102,1735336171164,-500.0,0.00014179,2]
[346871103,1735336171188,-309.95,0.00014179,2]
[346871104,1735336171213,-1893.62,0.0001418,2]
[346871105,1735336171234,-702.86,0.00014218,2]
[346871106,1735336171254,-500.0,0.00014219,2]
[346871107,1735336171274,-181.39,0.00014219,2]
[346871108,1735336171296,-500.0,0.00014219,2]
[346871109,1735336171317,-500.0,0.00014221,2]
[346871110,1735336171339,-1113.62,0.00014221,2]
[346871111,1735336171423,467.44126257,0.0001089,2]
[346871112,1735336171470,-500.0,0.00014452,2]
[346871113,1735336171494,-670.86,0.00014452,2]
[346871114,1735336171515,-566.44,0.00014453,2]
[346871115,1735336171537,-544.18,0.00014453,2]
[346871116,1735336171561,-4061.87,0.00014453,2]
[346871117,1735336171585,-500.0,0.00014453,2]
[346871118,1735336171607,-1893.62,0.00014454,2]
[346871119,1735336171628,-702.86,0.00014492,2]
[346871120,1735336171649,-289.51,0.00014493,2]
[346871121,1735336171671,-539.71,0.00014493,2]
[346871122,1735336171707,-500.0,0.00014495,2]
[346871123,1735336171744,-1113.62,0.00014495,2]
[346871124,1735336171777,-500.0,0.00014726,2]
[346871125,1735336171810,-670.86,0.00014726,2]
[346871126,1735336171841,-566.44,0.00014727,2]
[346871127,1735336171874,-544.18,0.00014727,2]
[346871128,1735336171906,-4061.87,0.00014727,2]
[346871129,1735336171938,-500.0,0.00014727,2]
[346871130,1735336171970,-1893.62,0.00014728,2]
[346871131,1735336171999,-702.86,0.00014766,2]
[346871132,1735336172030,-500.0,0.00014769,2]
[346871133,1735336172062,-1113.62,0.00014769,2]
[346871134,1735336172092,-6493.82820184,0.00014987,2]
[346871135,1735336172126,-6493.82820184,0.0001499,2]
[346871136,1735336172156,-6493.82820184,0.00014991,2]
[346871137,1735336172187,-500.0,0.00015,2]
[346871138,1735336172218,-670.86,0.00015,2]
[346871139,1735336172248,-566.44,0.00015001,2]
[346871140,1735336172277,-544.18,0.00015001,2]
[346871141,1735336172307,-4061.87,0.00015001,2]
[346871142,1735336172338,-500.0,0.00015001,2]
[346871143,1735336172369,-1893.62,0.00015002,2]
[346871144,1735336172400,-702.86,0.0001504,2]
[346871145,1735336172431,-500.0,0.00015043,2]
[346871146,1735336172464,-1113.62,0.00015043,2]
[346871147,1735336172494,-157.72206669,0.00015228,2]
[346871148,1735336172526,-500.0,0.00015274,2]
[346871149,1735336172557,-670.86,0.00015274,2]
[346871150,1735336172588,-566.44,0.00015275,2]
[346871151,1735336172619,-544.18,0.00015275,2]
[346871152,1735336172651,-4061.87,0.00015275,2]
[346871153,1735336172683,-500.0,0.00015275,2]
[346871154,1735336172716,-1893.62,0.00015276,2]
[346871155,1735336172762,500.0,0.00012346,2]
[346871156,1735336172802,1000.0,0.00012894,2]
[346871157,1735336172838,1500.0,0.00013896,2]
[346871158,1735336172873,1000.0,0.00015193,2]
[346871159,1735336172904,-510.49079653,0.00015314,2]
[346871160,1735336179346,500.0,0.00010618,2]
[346871161,1735336179584,500.0,0.00010891,2]
[346871162,1735336179779,500.0,0.00010892,2]
[346871163,1735336180460,500.0,0.00011166,2]
[346871164,1735336181049,500.0,0.0001089,2]
[346871165,1735336181102,500.0,0.0001144,2]
[346871166,1735336181306,500.0,0.00011164,2]
[346871167,1735336181633,500.0,0.00011438,2]
[346871168,1735336181875,500.0,0.00011712,2]
[346871169,1735336181913,500.0,0.00011714,2]
[346871170,1735336181951,500.0,0.00011481,2]
[346871171,1735336182246,500.0,0.00011986,2]
[346871172,1735336182522,500.0,0.0001226,2]
[346871173,1735336182558,500.0,0.00011988,2]
[346871174,1735336182596,500.0,0.00011755,2]
[346871175,1735336182787,208.30160642,0.00012534,2]
[346871176,1735336183100,500.0,0.00012262,2]
[346871177,1735336183353,500.0,0.00012029,2]
[346871178,1735336184886,500.0,0.00012536,2]
[346871179,1735336185452,500.0,0.00012303,2]
[346871180,1735336185990,500.0,0.0001281,2]
[346871181,1735336186392,500.0,0.00012577,2]
[346871182,1735336186746,500.0,0.00013084,2]
[346871183,1735336187083,222.81,0.00012851,2]
[346871184,1735336187210,352.47,0.00013358,2]
[346871185,1735336189192,201.55788218,0.00015217,2]
[346871186,1735336198594,365.62,0.00010891,2]
[346871187,1735336214714,500.0,0.0001089,2]
[346871188,1735336214998,500.0,0.00011164,2]
[346871189,1735336215610,500.0,0.00011438,2]
[346871190,1735336215857,500.0,0.00011712,2]
[346871191,1735336216098,500.0,0.00011986,2]
[346871192,1735336216364,500.0,0.0001226,2]
[346871193,1735336216623,500.0,0.00012534,2]
[346871194,1735336216946,353.68743071,0.00012808,2]
[346871195,1735336216970,146.31256929,0.00012808,2]
[346871196,1735336217200,500.0,0.00013082,2]
[346871197,1735336217580,500.0,0.00013356,2]
[346871198,1735336217827,500.0,0.0001363,2]
[346871199,1735336218316,203.07,0.00013904,2]
[346871232,1735336232869,-24900.0,0.00014945,2]
[346871234,1735336232878,-192.36920347,0.00015314,2]
[346871236,1735336232889,-1113.62,0.00015317,2]
[346871238,1735336232899,-670.86,0.00015548,2]
[346871240,1735336232909,-566.44,0.00015549,2]
[346871242,1735336232919,-4061.87,0.00015549,2]
[346871244,1735336232930,-500.0,0.00015549,2]
[346871246,1735336232940,-1893.62,0.0001555,2]
[346871248,1735336232949,-702.86,0.00015588,2]
[346871250,1735336232960,-1113.62,0.00015591,2]
[346871252,1735336232969,-670.86,0.00015822,2]
[346871254,1735336232979,-566.44,0.00015823,2]
[346871256,1735336232990,-4061.87,0.00015823,2]
[346871258,1735336232999,-625.98842261,0.00015824,2]
[346871260,1735336233013,-1087.23355133,0.00015824,2]
[346871263,1735336233026,-180.39802606,0.00015824,2]
[346871265,1735336233036,-702.86,0.00015862,2]
[346871268,1735336233056,-1113.62,0.00015865,2]
[346871270,1735336233069,-670.86,0.00016096,2]
[346871272,1735336233079,-566.44,0.00016097,2]
[346871274,1735336233090,-4061.87,0.00016097,2]
[346871276,1735336233100,-1893.62,0.00016098,2]
[346871278,1735336233111,-702.86,0.00016136,2]
[346871280,1735336233121,-1113.62,0.00016139,2]
[346871282,1735336233132,-340.58038147,0.00016184,2]
[346871284,1735336233144,-152.0,0.00016284,2]
[346871286,1735336233154,-670.86,0.0001637,2]
[346871288,1735336233165,-566.44,0.00016371,2]
[346871290,1735336233174,-160.1891734,0.00016371,2]
[346871297,1735336233251,-3901.6808266,0.00016371,2]
[346871300,1735336233262,-1893.62,0.00016372,2]
[346871302,1735336233272,-702.86,0.0001641,2]
[346871304,1735336233282,-1113.62,0.00016413,2]
[346871306,1735336233293,-500.0,0.00016438,2]
[346871308,1735336233303,-500.0,0.00016438,2]
[346871310,1735336233313,-500.0,0.00016438,2]
[346871312,1735336233324,-500.0,0.00016438,2]
[346871314,1735336233334,-381.62581908,0.00016438,2]
[346871316,1735336233344,-9834.06913697,0.000165,2]
[346871348,1735336235909,833.98,0.00010891,2]
[346871349,1735336236164,833.98,0.00011165,2]
[346871350,1735336236428,833.98,0.00011439,2]
[346871351,1735336236689,833.98,0.00011713,2]
[346871352,1735336236937,833.98,0.00011987,2]
[346871353,1735336237194,833.98,0.00012261,2]
[346871354,1735336237454,833.98,0.00012535,2]
[346871355,1735336237709,833.98,0.00012809,2]
[346871356,1735336238011,833.98,0.00013083,2]
[346871374,1735336238464,833.98,0.00013357,2]
[346871404,1735336238746,833.98,0.00013631,2]
[346871406,1735336238760,-453.0,0.0001637,2]
[346871451,1735336239114,-47.0,0.0001637,2]
[346871453,1735336239125,-370.1242864,0.0001637,2]
[346871455,1735336239135,-153.5139799,0.00016438,2]
[346871457,1735336239151,-10396.32578204,0.000165,2]
[346871459,1735336239163,-8046.42508099,0.000165,2]
[346871461,1735336239173,-9822.03,0.000165,2]
[346871463,1735336239183,-26357.55,0.000165,2]
[346871465,1735336239193,-271.759,0.00016629,2]
[346871467,1735336239203,-670.86,0.00016644,2]
[346871469,1735336239213,-566.44,0.00016645,2]
[346871471,1735336239227,-1893.62,0.00016646,2]
[346871473,1735336239237,-193.0,0.00016651,2]
[346871475,1735336239247,-702.86,0.00016684,2]
[346871478,1735336239257,-1113.62,0.00016687,2]
[346871479,1735336239266,-340.5803814,0.00016758,2]